fUSD/lending_fUSD_20250414
["ID","MTS","AMOUNT","RATE_DAILY","PERIOD"]
[357930902,1744588863659,-150.0,0.00018889,2]
[357930903,1744588893610,274.35288698,0.00016942,2]
[357930904,1744588893683,823.70711302,0.00016942,2]
[357930905,1744588895009,200.0,0.0001886,7]
[357930906,1744588896213,-150.0,0.00018889,2]
[357930907,1744588920928,-178.17901293,0.00018889,2]
[357930908,1744588928686,-321.82098707,0.00018889,2]
[357930909,1744588980830,-186.38050433,0.00018889,2]
[357930910,1744589104229,208.5953711,0.0002,4]
[357930911,1744589127747,-175.93097323,0.0001882,2]
[357930912,1744589141214,150.0,0.0002,4]
[357930913,1744589169815,150.0,0.0002,4]
[357930914,1744589195523,150.0,0.0002,4]
[357930915,1744589343083,-191.97,0.00018,2]
[357930920,1744589403851,2000.0,0.0002,4]
[357930929,1744589431933,-148.69690205,0.00018,2]
[357930930,1744589431943,-156.7,0.00018677,2]
[357930931,1744589431952,-190.85,0.0001871,2]
[357930932,1744589431963,-597.28902677,0.0001882,2]
[357930933,1744589431972,-156.11,0.0001888,2]
[357930934,1744589431982,-290.01139828,0.00018889,2]
[357930935,1744589431994,-489.50809739,0.00018889,2]
[357930936,1744589432004,-182.69343337,0.00019075,2]
[357930937,1744589432013,-500.0,0.00019145,2]
[357930938,1744589432023,-200.0,0.00019175,2]
[357930939,1744589432032,-300.0,0.00019177,2]
[357930940,1744589432042,-300.0,0.00019177,2]
[357930941,1744589432052,-3104.42,0.00019178,2]
[357930942,1744589432062,-175.93097323,0.00019178,2]
[357930943,1744589432071,-1277.20344951,0.00019178,2]
[357930944,1744589432092,-850.02655049,0.00019178,2]
[357930945,1744589432102,-500.0,0.00019178,2]
[357930946,1744589432111,-500.0,0.00019178,2]
[357930947,1744589432121,-572.83,0.00019178,2]
[357930948,1744589432130,-250.0,0.00019178,2]
[357930949,1744589432140,-500.0,0.000192,2]
[357930950,1744589432149,-1098.06,0.00019206,2]
[357930951,1744589432159,-250.0,0.00019207,2]
[357930952,1744589432169,-217.0,0.00019231,2]
[357930953,1744589432179,-173.56,0.00019232,2]
[357930954,1744589432189,-3086.93471951,0.00019232,2]
[357930955,1744589432214,-7700.763059,0.00019232,2]
[357930956,1744589432225,-10335.35274793,0.00019232,2]
[357930957,1744589432252,-640.83736948,0.00019232,2]
[357930958,1744589432264,-374.60210408,0.00019232,2]
[357930959,1744589432274,-3104.42,0.00019452,2]
[357930960,1744589432283,-2127.23,0.00019452,2]
[357930961,1744589432294,-500.0,0.00019452,2]
[357930962,1744589432308,-500.0,0.00019452,2]
[357930963,1744589432318,-572.83,0.00019452,2]
[357930964,1744589432328,-166.21,0.0001948,2]
[357930966,1744589432338,-310.98,0.00019603,2]
[357930968,1744589432348,-3104.42,0.00019726,2]
[357930969,1744589432358,-2127.23,0.00019726,2]
[357930971,1744589432367,-500.0,0.00019726,2]
[357930973,1744589432378,-500.0,0.00019726,2]
[357930975,1744589432388,-572.83,0.00019726,2]
[357930977,1744589432398,-301.13046187,0.000198,2]
[357930979,1744589432408,-301.13046187,0.00019811,2]
[357930981,1744589432417,-301.13046187,0.00019822,2]
[357930983,1744589432427,-301.13046187,0.00019833,2]
[357930985,1744589432436,-301.13046187,0.00019844,2]
[357930987,1744589432445,-301.13046187,0.00019856,2]
[357930989,1744589432454,-301.13046187,0.00019867,2]
[357930991,1744589432464,-301.13046187,0.00019878,2]
[357930992,1744589432473,-791.0,0.00019888,2]
[357930995,1744589432483,-907.0,0.00019888,2]
[357930996,1744589432492,-1279.0,0.00019888,2]
[357930998,1744589432502,-1438.0,0.00019888,2]
[357931000,1744589432511,-545.0,0.00019888,2]
[357931002,1744589432520,-4147.0,0.00019888,2]
[357931004,1744589432530,-528.98346037,0.00019888,2]
[357931044,1744589438099,-46.01653963,0.00019888,2]
[357931045,1744589438109,-152.0,0.00019888,2]
[357931046,1744589438119,-734.56601395,0.00019888,2]
[357931047,1744589438131,-2543.90338018,0.00019888,2]
[357931048,1744589438187,-684.53060587,0.00019888,2]
[357931049,1744589438196,-301.13046187,0.00019889,2]
[357931050,1744589438206,-500.0,0.00019899,2]
[357931051,1744589438218,-500.0,0.00019899,2]
[357931052,1744589438228,-500.0,0.00019899,2]
[357931053,1744589438237,-233.20117352,0.00019899,2]
[357931054,1744589438247,-500.0,0.00019899,2]
[357931055,1744589438256,-40765.13953874,0.000199,2]
[357931056,1744589438269,-6505.79936126,0.000199,2]
[357931057,1744589438278,-6399.07661874,0.000199,2]
[357931058,1744589438290,-35900.49417663,0.000199,2]
[357931059,1744589438302,-150.3451264,0.000199,2]
[357931060,1744589438313,-621.5039,0.000199,2]
[357931061,1744589438322,-15472.2288,0.000199,2]
[357931062,1744589438332,-348.5354,0.000199,2]
[357931063,1744589438342,-166.9983,0.000199,2]
[357931064,1744589438352,-20670.93,0.000199,2]
[357931066,1744589438361,-175.51614441,0.000199,2]
[357931068,1744589438371,-601.306,0.000199,2]
[357931070,1744589438382,-152.452924,0.000199,2]
[357931072,1744589438392,-191.69625824,0.000199,2]
[357931073,1744589438401,-5000.0,0.000199,2]
[357931074,1744589438410,-2082.27676051,0.000199,2]
[357931075,1744589438420,-174.94275023,0.000199,2]
[357931077,1744589438430,-301.13046187,0.000199,2]
[357931078,1744589438439,-1674.1200897,0.000199,2]
[357931080,1744589438448,-1000.0,0.000199,2]
[357931081,1744589438458,-501.79370607,0.00019973,2]
[357931082,1744589438467,-500.0,0.00019973,2]
[357931083,1744589438476,-502.81834,0.00019973,2]
[357931084,1744589438485,-501.45848199,0.00019973,2]
[357931085,1744589438495,-500.0,0.00019973,2]
[357931087,1744589438504,-500.0,0.00019973,2]
[357931088,1744589438514,-160.5264738,0.00019986,2]
[357931090,1744589438523,-150.0,0.00019986,2]
[357931092,1744589438532,-283.449,0.00019999,2]
[357931093,1744589438542,-150.0,0.00019999,2]
[357931094,1744589438551,-150.0,0.00019999,2]
[357931095,1744589438561,-1287.0,0.00019999,2]
[357931096,1744589438571,-1327.0,0.00019999,2]
[357931097,1744589438580,-2046.0,0.00019999,2]
[357931098,1744589438590,-150.0,0.00019999,2]
[357931099,1744589438600,-500.0,0.00019999,2]
[357931100,1744589438609,-500.0,0.00019999,2]
[357931101,1744589438619,-500.0,0.00019999,2]
[357931102,1744589438630,-500.0,0.00019999,2]
[357931103,1744589438642,-500.0,0.00019999,2]
[357931104,1744589438652,-256.68829129,0.00019999,2]
[357931105,1744589438661,-500.0,0.00019999,2]
[357931106,1744589438671,-500.0,0.00019999,2]
[357931107,1744589438681,-500.0,0.00019999,2]
[357931108,1744589438691,-176.43324481,0.00019999,2]
[357931109,1744589438700,-500.0,0.00019999,2]
[357931110,1744589438709,-500.0,0.00019999,2]
[357931111,1744589438730,-500.0,0.00019999,2]
[357931112,1744589438740,-250.0,0.00019999,2]
[357931113,1744589438751,-500.0,0.00019999,2]
[357931114,1744589438761,-245.41137197,0.00019999,2]
[357931115,1744589438771,-848.0,0.0002,2]
[357931116,1744589438780,-24340.46130338,0.0002,2]
[357931118,1744589440091,-844.83379821,0.0002,2]
[357931119,1744589440103,-305.13844794,0.0002,2]
[357931120,1744589440116,-1572.3480094,0.0002,2]
[357931121,1744589440128,-277.88807783,0.0002,2]
[357931122,1744589440143,-838.1195355,0.0002,2]
[357931123,1744589440155,-1223.949227,0.0002,2]
[357931124,1744589440165,-3000.0,0.0002,2]
[357931125,1744589440203,-569.96105263,0.0002,2]
[357931126,1744589440532,-0.02566884,0.0002,2]
[357931127,1744589440543,-7800.0,0.0002,2]
[357931128,1744589440558,-8324.87976559,0.0002,2]
[357931137,1744589442993,-1710.0,0.0002,2]
[357931152,1744589444503,-7406.01959457,0.0002,2]
[357931153,1744589444514,-407.99666842,0.0002,2]
[357931154,1744589444530,-1645.8934959,0.0002,2]
[357931155,1744589444543,-4865.1401764,0.0002,2]
[357931156,1744589444554,-2669.26,0.0002,2]
[357931157,1744589444570,-1718.02,0.0002,2]
[357931160,1744589446116,-2990.2942112,0.0002,2]
[357931161,1744589446128,-398.78096,0.0002,2]
[357931162,1744589446185,-4670.20003953,0.0002,2]
[357931278,1744589453588,421.46,0.0001999,3]
[357931279,1744589546754,571.23,0.00017,2]
[357931280,1744589546786,2652.49938492,0.00017,2]
[357931281,1744589546817,2211.24423893,0.00017,2]
[357931282,1744589546847,319.26841368,0.00017,2]
[357931283,1744589546876,2243.21910133,0.00017,2]
[357931284,1744589546906,4157.55892819,0.00017,2]
[357931285,1744589546939,3087.67486941,0.00017,2]
[357931286,1744589546969,2797.20424958,0.00017,2]
[357931287,1744589547014,4356.37621309,0.00017,2]
[357931288,1744589547047,3277.0191276,0.00017,2]
[357931289,1744589547071,3890.78,0.00017,2]
[357931290,1744589547092,10000.0,0.00017,2]
[357931291,1744589547119,10000.0,0.00017,2]
[357931292,1744589547140,10000.0,0.00017,2]
[357931293,1744589547162,10000.0,0.00017,2]
[357931294,1744589547183,10000.0,0.00017,2]
[357931295,1744589547203,10000.0,0.00017,2]
[357931296,1744589547224,10000.0,0.00017,2]
[357931297,1744589547249,10000.0,0.00017,2]
[357931298,1744589547270,10000.0,0.00017,2]
[357931299,1744589547292,3723.83356734,0.00017,2]
[357931300,1744589563229,4549.7261727,0.00016,2]
[357931301,1744589920044,1057.0,0.0001725,2]
[357931302,1744590040564,-150.02566884,0.00018905,2]
[357931303,1744590304927,206.50941739,0.0002,4]
[357931304,1744590343297,150.0,0.0002,4]
[357931305,1744590369393,177.38932654,0.0002,4]
[357931306,1744590407947,150.0,0.0002,4]
[357931307,1744590432903,150.0,0.0002,4]
[357931311,1744590604639,2000.0,0.0002,4]
[357931318,1744590632277,-535.754333,0.00018704,2]
[357931319,1744590632287,-164.57,0.00018777,2]
[357931320,1744590632296,-200.0,0.00018798,2]
[357931321,1744590632305,-164.57,0.00018808,2]
[357931323,1744590632314,-164.57,0.00018839,2]
[357931325,1744590632323,-164.57,0.00018871,2]
[357931327,1744590632333,-150.0,0.00018894,2]
[357931329,1744590632342,-211.12,0.000189,2]
[357931331,1744590632351,-300.0,0.00018999,2]
[357931333,1744590632361,-300.0,0.00018999,2]
[357931335,1744590632371,-633.25,0.00019,2]
[357931337,1744590632380,-633.25,0.00019,2]
[357931339,1744590632389,-633.25,0.00019,2]
[357931341,1744590632399,-633.25,0.00019,2]
[357931343,1744590632408,-633.25,0.00019,2]
[357931345,1744590632417,-250.0,0.00019,2]
[357931347,1744590632427,-250.0,0.00019,2]
[357931349,1744590632436,-2000.0,0.00019021,2]
[357931351,1744590632445,-191.97,0.00019138,2]
[357931354,1744590632455,-150.0,0.00019177,2]
[357931357,1744590632465,-528.15596525,0.00019178,2]
[357931360,1744590632474,-530.46329354,0.00019178,2]
[357931363,1744590632483,-2716.36,0.00019178,2]
[357931366,1744590632493,-3388.31,0.00019178,2]
[357931369,1744590632502,-500.0,0.00019178,2]
[357931372,1744590632512,-501.23,0.00019178,2]
[357931374,1744590632521,-500.0,0.00019178,2]
[357931377,1744590632530,-500.0,0.00019178,2]
[357931380,1744590632539,-263.07517861,0.00019178,2]
[357931383,1744590632548,-35411.49467077,0.00019178,2]
[357931386,1744590632558,-1000.0,0.00019193,2]
[357931389,1744590632568,-171.9565045,0.00019399,2]
[357931392,1744590632577,-506.21,0.000194,2]
[357931395,1744590632587,-300.0,0.000194,2]
[357931398,1744590632595,-322.83,0.000194,2]
[357931401,1744590632605,-349.09,0.000194,2]
[357931404,1744590632614,-708.31747716,0.00019452,2]
[357931407,1744590632626,-1295.69999989,0.00019452,2]
[357931449,1744590633001,-271.54296096,0.00019452,2]
[357931540,1744590638337,-157.55,0.00018558,2]
[357931541,1744590638394,-440.79956199,0.00019452,2]
[357931542,1744590638403,-2643.38043802,0.00019452,2]
[357931543,1744590638417,-744.92956198,0.00019452,2]
[357931544,1744590638431,-500.0,0.00019452,2]
[357931545,1744590638440,-501.23,0.00019452,2]
[357931546,1744590638450,-500.0,0.00019452,2]
[357931547,1744590638459,-166.9,0.00019463,2]
[357931548,1744590638469,-1057.0,0.00019514,2]
[357931549,1744590638478,-408.78,0.000196,2]
[357931550,1744590638488,-2059.6523843,0.0001961,2]
[357931551,1744590638498,-2716.36,0.00019726,2]
[357931552,1744590638507,-3388.31,0.00019726,2]
[357931553,1744590638517,-500.0,0.00019726,2]
[357931554,1744590638526,-501.23,0.00019726,2]
[357931555,1744590638536,-500.0,0.00019726,2]
[357931556,1744590638545,-202.7743,0.000198,2]
[357931557,1744590638554,-20670.93,0.000198,2]
[357931558,1744590638564,-6725.9437,0.000198,2]
[357931559,1744590638575,-348.5354,0.000198,2]
[357931560,1744590638584,-4066.0495,0.000198,2]
[357931561,1744590638594,-4416.6927,0.000198,2]
[357931562,1744590638603,-150.56523094,0.000198,2]
[357931563,1744590638614,-3026.59646082,0.0001987,2]
[357931564,1744590638624,-36812.1484,0.000199,2]
[357931565,1744590638633,-300.6902528,0.000199,2]
[357931566,1744590638643,-175.51614441,0.000199,2]
[357931567,1744590638653,-166.9983,0.000199,2]
[357931568,1744590638662,-1307.68496023,0.000199,2]
[357931569,1744590638682,-665.2274099,0.000199,2]
[357931570,1744590638698,-12929.701184,0.000199,2]
[357931571,1744590638715,-423.88,0.000199,2]
[357931572,1744590638727,-145.73524587,0.000199,2]
[357931573,1744590638737,-601.306,0.000199,2]
[357931574,1744590638747,-152.452924,0.000199,2]
[357931575,1744590638757,-1000.0,0.000199,2]
[357931576,1744590638767,-12500.0,0.000199,2]
[357931577,1744590638778,-191.69625824,0.000199,2]
[357931578,1744590638787,-5000.0,0.000199,2]
[357931579,1744590638797,-150.56523093,0.000199,2]
[357931580,1744590638806,-5866.17204897,0.000199,2]
[357931581,1744590638816,-345.16269822,0.000199,2]
[357931582,1744590638826,-1674.1200897,0.000199,2]
[357931583,1744590638836,-1000.0,0.000199,2]
[357931584,1744590638846,-501.79370607,0.00019973,2]
[357931585,1744590638855,-500.0,0.00019973,2]
[357931586,1744590638864,-418.04399899,0.00019986,2]
[357931587,1744590638874,-310.5264738,0.00019986,2]
[357931588,1744590638884,-791.0,0.00019999,2]
[357931589,1744590638893,-1438.0,0.00019999,2]
[357931590,1744590638903,-907.0,0.00019999,2]
[357931591,1744590638912,-1279.0,0.00019999,2]
[357931592,1744590638922,-545.0,0.00019999,2]
[357931593,1744590638931,-4147.0,0.00019999,2]
[357931594,1744590638940,-575.0,0.00019999,2]
[357931595,1744590638950,-1287.0,0.00019999,2]
[357931596,1744590638959,-1327.0,0.00019999,2]
[357931597,1744590638968,-152.0,0.00019999,2]
[357931598,1744590638978,-3963.0,0.00019999,2]
[357931599,1744590638988,-2046.0,0.00019999,2]
[357931600,1744590638998,-150.0,0.00019999,2]
[357931601,1744590639007,-500.0,0.00019999,2]
[357931602,1744590639016,-352.00648739,0.00019999,2]
[357931603,1744590639025,-500.0,0.00019999,2]
[357931604,1744590639035,-500.0,0.00019999,2]
[357931605,1744590639044,-500.0,0.00019999,2]
[357931606,1744590639053,-205.37009856,0.00019999,2]
[357931607,1744590639062,-600.0,0.00019999,2]
[357931608,1744590639073,-638.0,0.0002,2]
[357931609,1744590639082,-39688.89359797,0.0002,2]
[357931610,1744590639091,-33062.67244659,0.0002,2]
[357931611,1744590639109,-18830.53484815,0.0002,2]
[357931612,1744590639120,-521.5375,0.0002,2]
[357931613,1744590640313,-150.0,0.00019178,2]
[357931614,1744590640324,-8358.23935301,0.0002,2]
[357931615,1744590640340,-328.3079847,0.0002,2]
[357931616,1744590640363,-1633.42262764,0.0002,2]
[357931617,1744590640376,-984.65863365,0.0002,2]
[357931618,1744590640413,-417.23,0.0002,2]
[357931641,1744590643240,-4233.35,0.0002,2]
[357931642,1744590643253,-1043.075,0.0002,2]
[357931643,1744590643269,-392.29490377,0.0002,2]
[357931651,1744590645101,-424.43902059,0.0002,2]
[357931654,1744590646101,-1128.25022014,0.0002,2]
[357931655,1744590646159,-401.28336,0.0002,2]
[357931656,1744590646170,-47629.41396327,0.0002,2]
[357931657,1744590646215,-62279.60928108,0.0002,2]
[357931880,1744590753185,171.0,0.00013699,2]
[357931881,1744590753601,171.0,0.00013699,2]
[357931882,1744590754126,171.02,0.00013699,2]
[357931883,1744591051789,1081.55,0.00016914,2]
[357931884,1744591504792,204.44432321,0.0002,4]
[357931885,1744591541353,150.0,0.0002,4]
[357931886,1744591567171,175.61543328,0.0002,4]
[357931887,1744591604287,150.0,0.0002,4]
[357931888,1744591614702,161.28,0.00014989,2]
[357931889,1744591630375,150.0,0.0002,4]
[357931892,1744591832253,-189.598454,0.00018576,2]
[357931893,1744591832263,-255.56,0.00018669,2]
[357931894,1744591832273,-244.46,0.00018677,2]
[357931895,1744591832282,-250.0,0.00018749,2]
[357931896,1744591832291,-1000.0,0.00018818,2]
[357931897,1744591832301,-4523.71,0.00018838,2]
[357931898,1744591832310,-200.0,0.00018896,2]
[357931899,1744591832319,-200.0,0.00018909,2]
[357931900,1744591832328,-250.0,0.00018963,2]
[357931901,1744591832337,-793.39,0.00019151,2]
[357931902,1744591832346,-300.0,0.00019176,2]
[357931903,1744591832356,-297.0,0.00019177,2]
[357931904,1744591832365,-300.0,0.00019177,2]
[357931905,1744591832375,-262.0,0.00019177,2]
[357931906,1744591832384,-587.30127111,0.00019178,2]
[357931907,1744591832394,-522.78906223,0.00019178,2]
[357931908,1744591832403,-206.90168754,0.00019178,2]
[357931909,1744591832412,-533.84254641,0.00019178,2]
[357931910,1744591832421,-374.34867785,0.00019178,2]
[357931911,1744591832430,-500.0,0.00019178,2]
[357931912,1744591832440,-510.62137526,0.00019178,2]
[357931913,1744591832452,-509.50609741,0.00019178,2]
[357931914,1744591832462,-542.99253967,0.00019178,2]
[357931915,1744591832472,-176.10384135,0.00019178,2]
[357931916,1744591832481,-500.0,0.00019178,2]
[357931917,1744591832491,-617.39487146,0.00019178,2]
[357931918,1744591832500,-523.93949431,0.00019178,2]
[357931919,1744591832509,-516.21,0.00019178,2]
[357931920,1744591832519,-500.0,0.00019178,2]
[357931921,1744591832528,-150.0,0.00019178,2]
[357931922,1744591832537,-500.0,0.00019178,2]
[357931923,1744591832546,-486.78031967,0.00019178,2]
[357931924,1744591832558,-29.76850391,0.00019178,2]
[357931925,1744591832567,-500.0,0.00019178,2]
[357931927,1744591832577,-35.13418261,0.00019178,2]
[357931929,1744591832588,-477.80016519,0.00019178,2]
[357931931,1744591832597,-500.0,0.00019178,2]
[357931933,1744591832607,-500.0,0.00019178,2]
[357931934,1744591832616,-500.0,0.00019178,2]
[357931936,1744591832626,-508.91955234,0.00019178,2]
[357931938,1744591832635,-457.04787045,0.00019178,2]
[357931940,1744591832647,-25.94228508,0.00019178,2]
[357931942,1744591832656,-500.0,0.00019178,2]
[357931944,1744591832665,-463.69224073,0.00019178,2]
[357931946,1744591832674,-2376.82,0.00019178,2]
[357931948,1744591832683,-683.54547419,0.00019178,2]
[357931950,1744591832695,-1169.43452581,0.00019178,2]
[357931952,1744591832705,-500.0,0.00019178,2]
[357931954,1744591832714,-500.0,0.00019178,2]
[357931956,1744591832723,-500.0,0.00019178,2]
[357931958,1744591832732,-361.99812188,0.00019178,2]
[357931960,1744591832744,-719.55187812,0.00019178,2]
[357931962,1744591832754,-176.42764344,0.00019339,2]
[357931965,1744591832771,-1310.80950034,0.00019339,2]
[357931966,1744591832783,-5494.55078513,0.00019339,2]
[357931967,1744591832794,-3018.20207109,0.00019339,2]
[357931968,1744591832804,-26470.99,0.00019339,2]
[357931969,1744591832813,-150.99,0.00019339,2]
[357931970,1744591832823,-508.23,0.00019339,2]
[357931971,1744591832832,-1766.81,0.00019339,2]
[357931972,1744591832841,-314.94,0.00019339,2]
[357931973,1744591832850,-499.99,0.00019339,2]
[357931974,1744591832859,-302.3,0.00019339,2]
[357931975,1744591832868,-166.43,0.00019395,2]
[357931976,1744591833105,-171.9565045,0.00019399,2]
[357931977,1744591833117,-523.8373123,0.00019451,2]
[357931978,1744591833127,-500.0,0.00019452,2]
[357931979,1744591833137,-2376.82,0.00019452,2]
[357931980,1744591833150,-1852.98,0.00019452,2]
[357931981,1744591833160,-500.0,0.00019452,2]
[357931982,1744591833170,-500.0,0.00019452,2]
[357931983,1744591833181,-500.0,0.00019452,2]
[357931984,1744591833191,-446.68,0.000195,2]
[357931985,1744591833203,-349.09,0.000195,2]
[357931986,1744591833212,-446.68,0.000195,2]
[357931987,1744591833222,-349.09,0.000195,2]
[357931988,1744591833232,-446.68,0.000195,2]
[357931989,1744591833242,-345.29,0.000195,2]
[357931990,1744591833251,-2414.98,0.00019512,2]
[357931991,1744591833261,-292.32,0.00019726,2]
[357931992,1744591833271,-2376.82,0.00019726,2]
[357931993,1744591833280,-1852.98,0.00019726,2]
[357931994,1744591833290,-500.0,0.00019726,2]
[357931995,1744591833300,-500.0,0.00019726,2]
[357931996,1744591833309,-500.0,0.00019726,2]
[357931997,1744591833318,-1000.0,0.000198,2]
[357931998,1744591833328,-214.1626,0.00019899,2]
[357931999,1744591833337,-2500.0,0.00019899,2]
[357932000,1744591833346,-197.1523764,0.00019899,2]
[357932001,1744591833356,-197.1523764,0.00019899,2]
[357932002,1744591833366,-197.1523764,0.000199,2]
[357932003,1744591833377,-197.1523764,0.000199,2]
[357932004,1744591833386,-197.1523764,0.000199,2]
[357932005,1744591833396,-197.1523764,0.000199,2]
[357932006,1744591833405,-2839.22918798,0.000199,2]
[357932007,1744591833415,-207.67855773,0.000199,2]
[357932008,1744591833424,-1672.6881,0.000199,2]
[357932009,1744591833435,-12017.0534,0.000199,2]
[357932010,1744591833445,-1000.0,0.000199,2]
[357932011,1744591833455,-969.506,0.000199,2]
[357932012,1744591833464,-194.764,0.000199,2]
[357932013,1744591833473,-1911.183878,0.000199,2]
[357932014,1744591833485,-366.84501,0.000199,2]
[357932015,1744591833497,-10221.971112,0.000199,2]
[357932016,1744591833506,-197.1523764,0.000199,2]
[357932017,1744591833515,-2118.97107985,0.000199,2]
[357932018,1744591833527,-2881.02892015,0.000199,2]
[357932019,1744591833538,-191.69625824,0.000199,2]
[357932020,1744591833547,-4251.45382161,0.000199,2]
[357932021,1744591833567,-500.0,0.000199,2]
[357932022,1744591833579,-290.23984148,0.000199,2]
[357932023,1744591833591,-946.24,0.000199,2]
[357932024,1744591833602,-1450.01311387,0.000199,2]
[357932025,1744591833612,-20770.22943752,0.000199,2]
[357932026,1744591833624,-470.85739434,0.000199,2]
[357932027,1744591833635,-2583.59415557,0.000199,2]
[357932033,1744591838272,-397.1800039,0.000199,2]
[357932034,1744591838283,-624.1476786,0.000199,2]
[357932035,1744591838326,-364.04259866,0.000199,2]
[357932036,1744591838433,-5547.74016914,0.000199,2]
[357932037,1744591838487,-345.16269822,0.000199,2]
[357932038,1744591838495,-501.79370607,0.00019973,2]
[357932039,1744591838504,-500.0,0.00019973,2]
[357932040,1744591838513,-502.81834,0.00019973,2]
[357932041,1744591838523,-526.59619359,0.00019973,2]
[357932042,1744591838532,-151.0,0.00019986,2]
[357932043,1744591838541,-151.0,0.00019986,2]
[357932044,1744591838551,-154.638708,0.00019986,2]
[357932045,1744591838560,-151.0,0.00019986,2]
[357932046,1744591838570,-175.316842,0.00019986,2]
[357932047,1744591838579,-151.0,0.00019986,2]
[357932048,1744591838588,-607.4110866,0.00019986,2]
[357932049,1744591838598,-588.4182915,0.00019986,2]
[357932050,1744591838607,-569.4254965,0.00019986,2]
[357932051,1744591838616,-550.4327014,0.00019986,2]
[357932052,1744591838626,-531.4399064,0.00019986,2]
[357932053,1744591838635,-512.4471114,0.00019986,2]
[357932054,1744591838644,-7272.7587248,0.00019986,2]
[357932056,1744591838654,-7045.3509299,0.00019986,2]
[357932058,1744591838663,-6817.943135,0.00019986,2]
[357932060,1744591838673,-6590.53534,0.00019986,2]
[357932062,1744591838683,-6363.1275451,0.00019986,2]
[357932064,1744591838692,-6135.7197502,0.00019986,2]
[357932066,1744591838702,-485.7543174,0.00019986,2]
[357932067,1744591838712,-472.0975579,0.00019986,2]
[357932069,1744591838721,-458.4407983,0.00019986,2]
[357932071,1744591838731,-444.7840388,0.00019986,2]
[357932073,1744591838741,-431.1272792,0.00019986,2]
[357932075,1744591838750,-417.4705197,0.00019986,2]
[357932077,1744591838759,-151.0,0.00019986,2]
[357932079,1744591838770,-1287.0,0.00019999,2]
[357932081,1744591838780,-1327.0,0.00019999,2]
[357932083,1744591838789,-2046.0,0.00019999,2]
[357932085,1744591838799,-791.0,0.00019999,2]
[357932087,1744591838808,-1279.0,0.00019999,2]
[357932089,1744591838817,-545.0,0.00019999,2]
[357932090,1744591838827,-1438.0,0.00019999,2]
[357932092,1744591838836,-907.0,0.00019999,2]
[357932094,1744591838846,-575.0,0.00019999,2]
[357932096,1744591838856,-4147.0,0.00019999,2]
[357932098,1744591838865,-3963.0,0.00019999,2]
[357932100,1744591838875,-152.0,0.00019999,2]
[357932102,1744591838885,-198.881,0.00019999,2]
[357932104,1744591838894,-176.877,0.00019999,2]
[357932106,1744591838904,-250.0,0.00019999,2]
[357932108,1744591838914,-151.0,0.00019999,2]
[357932110,1744591838923,-150.0,0.00019999,2]
[357932112,1744591838933,-500.0,0.00019999,2]
[357932114,1744591838942,-585.37009856,0.00019999,2]
[357932116,1744591838953,-300.0,0.00019999,2]
[357932118,1744591838962,-255.60194622,0.00019999,2]
[357932119,1744591838972,-530.0,0.0002,2]
[357932121,1744591838981,-41097.98981476,0.0002,2]
[357932123,1744591838991,-354426.55115177,0.0002,2]
[357932126,1744591839003,-2281.87364935,0.0002,2]
[357932128,1744591839014,-17035.18789681,0.0002,2]